[Event "Early-Titled-Tuesday-Blitz-January-30-2024"]
[Site "Chess.com"]
[Date "2024.01.30"]
[Round "6"]
[White "NtcPou"]
[Black "Maftuna2303"]
[Result "1-0"]
[WhiteElo "2070"]
[BlackElo "2419"]
[TimeControl "180+1"]
[EndTime "9:09:23 PST"]
[Termination "NtcPou won by resignation"]

1. e4 {[%clk 0:02:50.4]} 1... e5 {[%clk 0:02:59.4]} 2. Nf3 {[%clk 0:02:50.3]}
2... Nc6 {[%clk 0:02:59.4]} 3. Bc4 {[%clk 0:02:50.7]} 3... Bc5 {[%clk 0:02:59]}
4. c3 {[%clk 0:02:50.7]} 4... Nf6 {[%clk 0:02:58.6]} 5. d3 {[%clk 0:02:51.1]}
5... O-O {[%clk 0:02:58.2]} 6. O-O {[%clk 0:02:51.2]} 6... d6 {[%clk 0:02:56.9]}
7. Re1 {[%clk 0:02:50.9]} 7... a6 {[%clk 0:02:56.8]} 8. Bb3 {[%clk 0:02:50.7]}
8... Ba7 {[%clk 0:02:54]} 9. Nbd2 {[%clk 0:02:49.3]} 9... Ne7 {[%clk 0:02:54]}
10. Kf1 {[%clk 0:02:45.4]} 10... Ng6 {[%clk 0:02:54]} 11. h3 {[%clk 0:02:44.7]}
11... Nh5 {[%clk 0:02:51.5]} 12. Kg1 {[%clk 0:02:43]} 12... Nhf4 {[%clk
0:02:50.4]} 13. Nf1 {[%clk 0:02:43]} 13... h5 {[%clk 0:02:40.7]} 14. d4 {[%clk
0:02:42.1]} 14... Qf6 {[%clk 0:02:38.1]} 15. Ng3 {[%clk 0:02:21.2]} 15... h4
{[%clk 0:02:31.9]} 16. Ne2 {[%clk 0:02:18.3]} 16... Nxh3+ {[%clk 0:02:30.6]} 17.
Kf1 {[%clk 0:02:16]} 17... Nhf4 {[%clk 0:02:28.2]} 18. Nxf4 {[%clk 0:02:15.5]}
18... Nxf4 {[%clk 0:02:26.7]} 19. Bxf4 {[%clk 0:01:46.9]} 19... Qxf4 {[%clk
0:02:21.3]} 20. Qd2 {[%clk 0:01:43.4]} 20... Qf6 {[%clk 0:02:19.4]} 21. Rad1
{[%clk 0:01:37.5]} 21... h3 {[%clk 0:02:18.4]} 22. dxe5 {[%clk 0:01:23.1]} 22...
hxg2+ {[%clk 0:02:07.2]} 23. Kxg2 {[%clk 0:01:22.9]} 23... dxe5 {[%clk
0:02:06.3]} 24. Qg5 {[%clk 0:01:19.8]} 24... Qxg5+ {[%clk 0:01:52.8]} 25. Nxg5
{[%clk 0:01:19.8]} 25... Bg4 {[%clk 0:01:53.1]} 26. f3 {[%clk 0:01:18.3]} 26...
Bh5 {[%clk 0:01:52]} 27. Rd7 {[%clk 0:01:11.5]} 27... Bb6 {[%clk 0:01:48.6]} 28.
Red1 {[%clk 0:01:01.1]} 28... a5 {[%clk 0:01:39.7]} 29. a4 {[%clk 0:00:59.5]}
29... Be3 {[%clk 0:01:36.6]} 30. Nh3 {[%clk 0:00:49.6]} 30... Rac8 {[%clk
0:01:33.3]} 31. R1d5 {[%clk 0:00:45.3]} 31... Rfe8 {[%clk 0:01:22]} 32. Rxa5
{[%clk 0:00:42.2]} 32... c5 {[%clk 0:01:21.5]} 33. Bd5 {[%clk 0:00:37.3]} 33...
b6 {[%clk 0:01:08.2]} 34. Raa7 {[%clk 0:00:36.5]} 34... Rf8 {[%clk 0:01:07.8]}
35. Re7 {[%clk 0:00:23.9]} 35... Rce8 {[%clk 0:01:04.9]} 36. Nf2 {[%clk
0:00:20.3]} 36... Rxe7 {[%clk 0:01:03.2]} 37. Rxe7 {[%clk 0:00:20]} 37... Rd8
{[%clk 0:01:01.6]} 38. Nd3 {[%clk 0:00:19.6]} 38... Bf4 {[%clk 0:00:54.2]} 39.
Nxe5 {[%clk 0:00:17.8]} 39... Rd6 {[%clk 0:00:42]} 40. c4 {[%clk 0:00:12.4]}
40... Rf6 {[%clk 0:00:38]} 41. Kf1 {[%clk 0:00:08.6]} 41... Bxe5 {[%clk
0:00:35.6]} 42. Rxe5 {[%clk 0:00:08.2]} 42... Bxf3 {[%clk 0:00:36.1]} 43. Ke1
{[%clk 0:00:07.8]} 43... Bh5 {[%clk 0:00:31.8]} 44. Re8+ {[%clk 0:00:07.9]}
44... Kh7 {[%clk 0:00:31.8]} 45. Rb8 {[%clk 0:00:08.8]} 45... g5 {[%clk
0:00:29.2]} 46. Rb7 {[%clk 0:00:07.9]} 46... g4 {[%clk 0:00:28.6]} 47. e5 {[%clk
0:00:08.4]} 47... Rf5 {[%clk 0:00:27.7]} 48. Be4 {[%clk 0:00:08.8]} 48... Bg6
{[%clk 0:00:27.2]} 49. Bxf5 {[%clk 0:00:09.2]} 49... Bxf5 {[%clk 0:00:27.4]} 50.
Rxf7+ {[%clk 0:00:09.2]} 50... Kg6 {[%clk 0:00:27.8]} 51. Rf6+ {[%clk
0:00:09.7]} 51... Kg5 {[%clk 0:00:27.8]} 52. Rxb6 {[%clk 0:00:09.8]} 52... g3
{[%clk 0:00:27.4]} 53. Kf1 {[%clk 0:00:09.9]} 53... Be4 {[%clk 0:00:26.9]} 54.
Kg1 {[%clk 0:00:09.7]} 54... Kf5 {[%clk 0:00:25.8]} 55. e6 {[%clk 0:00:09.5]}
55... g2 {[%clk 0:00:24.8]} 56. e7 {[%clk 0:00:09]} 1-0

[Event "Early-Titled-Tuesday-Blitz-January-30-2024"]
[Site "Chess.com"]
[Date "2024.01.30"]
[Round "6"]
[White "Aygehovit1992"]
[Black "DvaHrasta"]
[Result "1-0"]
[WhiteElo "2694"]
[BlackElo "2543"]
[TimeControl "180+1"]
[EndTime "9:09:25 PST"]
[Termination "Aygehovit1992 won on time"]

1. e4 {[%clk 0:03:00.9]} 1... c6 {[%clk 0:02:59.5]} 2. d4 {[%clk 0:03:00.5]}
2... d5 {[%clk 0:02:59.6]} 3. exd5 {[%clk 0:02:59.9]} 3... cxd5 {[%clk
0:02:59.4]} 4. Nf3 {[%clk 0:02:59.1]} 4... Nc6 {[%clk 0:02:59.5]} 5. Ne5 {[%clk
0:02:59.2]} 5... g6 {[%clk 0:02:49.2]} 6. Nxc6 {[%clk 0:02:50.2]} 6... bxc6
{[%clk 0:02:48.6]} 7. Bd3 {[%clk 0:02:51]} 7... Bg7 {[%clk 0:02:48.1]} 8. c3
{[%clk 0:02:50]} 8... Nf6 {[%clk 0:02:47.6]} 9. Nd2 {[%clk 0:02:48.4]} 9... a5
{[%clk 0:02:44.4]} 10. Nb3 {[%clk 0:02:48]} 10... O-O {[%clk 0:02:31]} 11. O-O
{[%clk 0:02:46.1]} 11... Nd7 {[%clk 0:02:28.8]} 12. Bf4 {[%clk 0:02:40.1]} 12...
a4 {[%clk 0:02:26.2]} 13. Nc1 {[%clk 0:02:36.7]} 13... c5 {[%clk 0:02:25.2]} 14.
Bc2 {[%clk 0:02:27.1]} 14... cxd4 {[%clk 0:02:17.5]} 15. cxd4 {[%clk 0:02:28]}
15... a3 {[%clk 0:02:12.5]} 16. bxa3 {[%clk 0:02:26.7]} 16... Qb6 {[%clk
0:02:06.6]} 17. Be3 {[%clk 0:02:07.4]} 17... Rxa3 {[%clk 0:01:59.9]} 18. Bb3
{[%clk 0:02:07.6]} 18... Ba6 {[%clk 0:01:46.4]} 19. Re1 {[%clk 0:02:07.4]} 19...
Bc4 {[%clk 0:01:43.6]} 20. Rb1 {[%clk 0:02:06.4]} 20... Qa6 {[%clk 0:01:37.1]}
21. h4 {[%clk 0:01:59.7]} 21... Nf6 {[%clk 0:01:35.7]} 22. Bd2 {[%clk
0:01:47.9]} 22... Bxb3 {[%clk 0:01:01.5]} 23. axb3 {[%clk 0:01:45.2]} 23... Ra1
{[%clk 0:00:51.7]} 24. Rxa1 {[%clk 0:01:43.7]} 24... Qxa1 {[%clk 0:00:51.6]} 25.
Ne2 {[%clk 0:01:18.8]} 25... Qb2 {[%clk 0:00:44.6]} 26. Bc3 {[%clk 0:01:04.7]}
26... Qa3 {[%clk 0:00:38.4]} 27. f3 {[%clk 0:00:57]} 27... Rc8 {[%clk
0:00:35.1]} 28. Bd2 {[%clk 0:00:51]} 28... Ne8 {[%clk 0:00:32.2]} 29. Be3 {[%clk
0:00:43.8]} 29... Nd6 {[%clk 0:00:31.4]} 30. Bf2 {[%clk 0:00:44.2]} 30... h5
{[%clk 0:00:28.6]} 31. Nf4 {[%clk 0:00:40]} 31... e6 {[%clk 0:00:25.6]} 32. Nd3
{[%clk 0:00:40.1]} 32... Nf5 {[%clk 0:00:22.8]} 33. Ne5 {[%clk 0:00:37.5]} 33...
Rc3 {[%clk 0:00:18.9]} 34. Qe2 {[%clk 0:00:06.9]} 34... Qxb3 {[%clk 0:00:16.9]}
35. Nxf7 {[%clk 0:00:06.7]} 35... Nxd4 {[%clk 0:00:15]} 36. Bxd4 {[%clk
0:00:04]} 36... Bxd4+ {[%clk 0:00:15]} 37. Kh2 {[%clk 0:00:04.2]} 37... Rc6
{[%clk 0:00:11.5]} 38. Ng5 {[%clk 0:00:04.1]} 38... Qb8+ {[%clk 0:00:11.3]} 39.
g3 {[%clk 0:00:03.2]} 39... Qb6 {[%clk 0:00:09.4]} 40. Qg2 {[%clk 0:00:02.7]}
40... Bf6 {[%clk 0:00:07.3]} 41. f4 {[%clk 0:00:02.4]} 41... Bxg5 {[%clk
0:00:07.2]} 42. hxg5 {[%clk 0:00:03.3]} 42... Qc7 {[%clk 0:00:07]} 43. Re2
{[%clk 0:00:03.6]} 43... d4 {[%clk 0:00:06.6]} 44. Qe4 {[%clk 0:00:03.8]} 44...
Qd7 {[%clk 0:00:06.2]} 45. Qxg6+ {[%clk 0:00:03.8]} 45... Kf8 {[%clk 0:00:05.9]}
46. Qf6+ {[%clk 0:00:03.6]} 46... Ke8 {[%clk 0:00:05.5]} 47. f5 {[%clk
0:00:03.6]} 47... d3 {[%clk 0:00:04.7]} 48. fxe6 {[%clk 0:00:04.1]} 48... Qe7
{[%clk 0:00:02.5]} 49. Qh8+ {[%clk 0:00:04.1]} 49... Qf8 {[%clk 0:00:02.6]} 50.
Qxh5+ {[%clk 0:00:04.5]} 50... Ke7 {[%clk 0:00:02.7]} 51. Ra2 {[%clk 0:00:04.5]}
51... Rc2+ {[%clk 0:00:01]} 52. Rxc2 {[%clk 0:00:03.7]} 52... dxc2 {[%clk
0:00:01.9]} 53. Qh7+ {[%clk 0:00:03.8]} 1-0

[Event "Early-Titled-Tuesday-Blitz-January-30-2024"]
[Site "Chess.com"]
[Date "2024.01.30"]
[Round "6"]
[White "bancsoo"]
[Black "LangesNasenhaar"]
[Result "1-0"]
[WhiteElo "2809"]
[BlackElo "2445"]
[TimeControl "180+1"]
[EndTime "9:09:26 PST"]
[Termination "bancsoo won by resignation"]

1. Nf3 {[%clk 0:03:00.9]} 1... g6 {[%clk 0:02:59]} 2. d4 {[%clk 0:03:00.4]} 2...
Bg7 {[%clk 0:02:59.1]} 3. c4 {[%clk 0:03:01.1]} 3... b6 {[%clk 0:02:54.6]} 4. g3
{[%clk 0:03:00.8]} 4... Bb7 {[%clk 0:02:54.3]} 5. Bg2 {[%clk 0:03:01.5]} 5...
Nf6 {[%clk 0:02:51.6]} 6. O-O {[%clk 0:03:01.3]} 6... e6 {[%clk 0:02:50.1]} 7.
Nc3 {[%clk 0:03:01]} 7... Ne4 {[%clk 0:02:49.7]} 8. Nxe4 {[%clk 0:03:00.8]} 8...
Bxe4 {[%clk 0:02:49.8]} 9. Bg5 {[%clk 0:03:01.5]} 9... Qc8 {[%clk 0:02:42.9]}
10. Qd2 {[%clk 0:03:01.4]} 10... O-O {[%clk 0:02:39.7]} 11. Bh6 {[%clk
0:03:01.5]} 11... d6 {[%clk 0:02:32]} 12. Qf4 {[%clk 0:02:55.5]} 12... Qb7
{[%clk 0:02:21.7]} 13. Qh4 {[%clk 0:02:51.4]} 13... Bxh6 {[%clk 0:01:52.5]} 14.
Qxh6 {[%clk 0:02:50.5]} 14... Bxf3 {[%clk 0:01:52.9]} 15. Bxf3 {[%clk
0:02:50.2]} 15... c6 {[%clk 0:01:53.4]} 16. d5 {[%clk 0:02:21]} 16... cxd5
{[%clk 0:01:37.4]} 17. cxd5 {[%clk 0:02:21.1]} 17... e5 {[%clk 0:01:37.8]} 18.
Rfc1 {[%clk 0:02:16.9]} 18... Qe7 {[%clk 0:01:11.9]} 19. e4 {[%clk 0:02:08.4]}
19... Nd7 {[%clk 0:01:10.7]} 20. Rc7 {[%clk 0:02:06.3]} 20... Rfc8 {[%clk
0:01:09.7]} 21. Rac1 {[%clk 0:02:06.2]} 21... Rxc7 {[%clk 0:01:06]} 22. Rxc7
{[%clk 0:02:05.3]} 22... Qd8 {[%clk 0:01:03.7]} 23. Rc6 {[%clk 0:02:03.6]} 23...
Nb8 {[%clk 0:01:00.9]} 24. Rc3 {[%clk 0:01:59]} 24... Nd7 {[%clk 0:01:00.7]} 25.
Qc1 {[%clk 0:01:57.7]} 25... a5 {[%clk 0:00:49.3]} 26. Rc6 {[%clk 0:01:51.5]}
26... Nc5 {[%clk 0:00:44.8]} 27. Qc4 {[%clk 0:01:51.4]} 27... Rc8 {[%clk
0:00:42.1]} 28. Bg4 {[%clk 0:01:44.9]} 28... Rxc6 {[%clk 0:00:36.4]} 29. dxc6
{[%clk 0:01:45.3]} 29... Qc7 {[%clk 0:00:35.6]} 30. Qd5 {[%clk 0:01:45.3]} 30...
Na6 {[%clk 0:00:29.6]} 31. a3 {[%clk 0:01:37.3]} 31... Nb8 {[%clk 0:00:27]} 32.
Qb3 {[%clk 0:00:38.7]} 32... Qxc6 {[%clk 0:00:17]} 33. Be2 {[%clk 0:00:38.6]}
33... Qxe4 {[%clk 0:00:10.1]} 34. Bc4 {[%clk 0:00:38.8]} 34... Qf5 {[%clk
0:00:07.8]} 35. Qxb6 {[%clk 0:00:34.3]} 35... Nd7 {[%clk 0:00:07.9]} 36. Qxd6
{[%clk 0:00:32.2]} 36... Nf6 {[%clk 0:00:07.6]} 37. Qd3 {[%clk 0:00:20.5]} 37...
Qxd3 {[%clk 0:00:06.2]} 38. Bxd3 {[%clk 0:00:20.8]} 38... Nd5 {[%clk 0:00:06.6]}
39. Bc4 {[%clk 0:00:19.1]} 39... Nb6 {[%clk 0:00:06.1]} 40. Ba2 {[%clk
0:00:15.2]} 40... Kf8 {[%clk 0:00:07]} 41. Kf1 {[%clk 0:00:15.3]} 41... Ke7
{[%clk 0:00:07.2]} 42. Ke2 {[%clk 0:00:15.9]} 42... f5 {[%clk 0:00:07.7]} 43. b4
{[%clk 0:00:16.4]} 43... axb4 {[%clk 0:00:06.7]} 44. axb4 {[%clk 0:00:17.3]}
44... Kd6 {[%clk 0:00:07.4]} 45. Kd3 {[%clk 0:00:18]} 45... Kc6 {[%clk
0:00:05.1]} 46. Bg8 {[%clk 0:00:17.9]} 46... h6 {[%clk 0:00:02.2]} 47. Bh7
{[%clk 0:00:18.3]} 47... g5 {[%clk 0:00:02.2]} 48. Bxf5 {[%clk 0:00:18.5]} 48...
Kb5 {[%clk 0:00:02.2]} 49. Ke4 {[%clk 0:00:19]} 49... Kxb4 {[%clk 0:00:02.4]}
50. Kxe5 {[%clk 0:00:19.7]} 50... Nc4+ {[%clk 0:00:02.9]} 51. Kf6 {[%clk
0:00:19.5]} 51... Nd2 {[%clk 0:00:03.8]} 52. Kg7 {[%clk 0:00:19.6]} 52... Nf3
{[%clk 0:00:04.2]} 53. Kxh6 {[%clk 0:00:20]} 53... Nxh2 {[%clk 0:00:04.7]} 54.
Kxg5 {[%clk 0:00:20.5]} 54... Kc5 {[%clk 0:00:05.6]} 55. Be4 {[%clk 0:00:19.1]}
55... Kd4 {[%clk 0:00:05.8]} 56. Kf4 {[%clk 0:00:18.7]} 56... Nf1 {[%clk
0:00:04.9]} 57. g4 {[%clk 0:00:19.2]} 57... Nd2 {[%clk 0:00:05]} 58. f3 {[%clk
0:00:19.4]} 58... Nc4 {[%clk 0:00:05]} 59. g5 {[%clk 0:00:19.8]} 59... Nd6
{[%clk 0:00:05.9]} 60. g6 {[%clk 0:00:19.6]} 60... Ne8 {[%clk 0:00:05.7]} 61.
Kf5 {[%clk 0:00:20]} 61... Kc5 {[%clk 0:00:04.9]} 62. Ke6 {[%clk 0:00:20.5]}
62... Ng7+ {[%clk 0:00:04.7]} 63. Kf7 {[%clk 0:00:20.2]} 63... Nh5 {[%clk
0:00:05.6]} 64. g7 {[%clk 0:00:20.6]} 64... Nxg7 {[%clk 0:00:05.8]} 65. Kxg7
{[%clk 0:00:21.2]} 1-0

[Event "Early-Titled-Tuesday-Blitz-January-30-2024"]
[Site "Chess.com"]
[Date "2024.01.30"]
[Round "6"]
[White "Duhless"]
[Black "jcibarra"]
[Result "0-1"]
[WhiteElo "3080"]
[BlackElo "2872"]
[TimeControl "180+1"]
[EndTime "9:09:29 PST"]
[Termination "jcibarra won on time"]

1. Nf3 {[%clk 0:03:00.9]} 1... Nf6 {[%clk 0:02:59.1]} 2. c4 {[%clk 0:03:00.1]}
2... d6 {[%clk 0:02:57.3]} 3. Nc3 {[%clk 0:02:59.9]} 3... g6 {[%clk 0:02:57.8]}
4. e4 {[%clk 0:02:58.8]} 4... c5 {[%clk 0:02:53.6]} 5. d4 {[%clk 0:02:58]} 5...
cxd4 {[%clk 0:02:54.5]} 6. Nxd4 {[%clk 0:02:58.9]} 6... Nc6 {[%clk 0:02:55]} 7.
Be2 {[%clk 0:02:57.5]} 7... Bg7 {[%clk 0:02:55.4]} 8. Be3 {[%clk 0:02:54.1]}
8... O-O {[%clk 0:02:55.5]} 9. O-O {[%clk 0:02:54]} 9... Bd7 {[%clk 0:02:56.1]}
10. h3 {[%clk 0:02:54.1]} 10... Nxd4 {[%clk 0:02:51.5]} 11. Bxd4 {[%clk
0:02:54.2]} 11... a5 {[%clk 0:02:51.4]} 12. Qc2 {[%clk 0:02:50.5]} 12... Bc6
{[%clk 0:02:51]} 13. Rad1 {[%clk 0:02:49.6]} 13... Nd7 {[%clk 0:02:38.1]} 14.
Bxg7 {[%clk 0:02:48.6]} 14... Kxg7 {[%clk 0:02:39]} 15. Bg4 {[%clk 0:02:49.3]}
15... a4 {[%clk 0:02:33]} 16. Bxd7 {[%clk 0:02:45.8]} 16... Bxd7 {[%clk
0:02:33.4]} 17. Nd5 {[%clk 0:02:39.6]} 17... Be6 {[%clk 0:02:26.6]} 18. Qc3+
{[%clk 0:02:35.1]} 18... f6 {[%clk 0:02:26.8]} 19. Qb4 {[%clk 0:02:26.4]} 19...
Qa5 {[%clk 0:01:49.5]} 20. Qa3 {[%clk 0:01:52.3]} 20... Kf7 {[%clk 0:01:44.3]}
21. Qe3 {[%clk 0:01:45.4]} 21... Kg7 {[%clk 0:01:21]} 22. Rfe1 {[%clk
0:01:30.2]} 22... Rf7 {[%clk 0:01:17.8]} 23. b4 {[%clk 0:01:19]} 23... axb3
{[%clk 0:01:17.6]} 24. axb3 {[%clk 0:01:19.8]} 24... Bxd5 {[%clk 0:01:05.5]} 25.
exd5 {[%clk 0:01:19.8]} 25... Qb4 {[%clk 0:01:01.7]} 26. h4 {[%clk 0:00:58]}
26... h5 {[%clk 0:00:53.4]} 27. Qd3 {[%clk 0:00:54.8]} 27... b5 {[%clk
0:00:46.8]} 28. Re3 {[%clk 0:00:52.5]} 28... bxc4 {[%clk 0:00:45.7]} 29. bxc4
{[%clk 0:00:52.4]} 29... Rc8 {[%clk 0:00:36.3]} 30. Rg3 {[%clk 0:00:50.4]} 30...
f5 {[%clk 0:00:36.9]} 31. Rc1 {[%clk 0:00:45.3]} 31... Qb2 {[%clk 0:00:36.5]}
32. Re1 {[%clk 0:00:41.4]} 32... Rc7 {[%clk 0:00:29.1]} 33. Rg5 {[%clk
0:00:24.3]} 33... Rf6 {[%clk 0:00:18.6]} 34. Qg3 {[%clk 0:00:07.5]} 34... Kf7
{[%clk 0:00:18.3]} 35. Qe3 {[%clk 0:00:07.2]} 35... Qb4 {[%clk 0:00:09.8]} 36.
Qe2 {[%clk 0:00:02.6]} 36... Qxc4 {[%clk 0:00:09.4]} 37. Qxc4 {[%clk 0:00:02]}
37... Rxc4 {[%clk 0:00:10.3]} 38. Rg3 {[%clk 0:00:01.4]} 38... Rxh4 {[%clk
0:00:05.7]} 39. Rge3 {[%clk 0:00:01.5]} 39... Re4 {[%clk 0:00:06.3]} 40. Rxe4
{[%clk 0:00:02.2]} 40... fxe4 {[%clk 0:00:07.2]} 41. Rxe4 {[%clk 0:00:02.9]}
41... Rf5 {[%clk 0:00:08]} 42. Rd4 {[%clk 0:00:03.6]} 42... Kf6 {[%clk
0:00:06.8]} 43. f3 {[%clk 0:00:04.1]} 43... Re5 {[%clk 0:00:05]} 44. Kf2 {[%clk
0:00:04.4]} 44... g5 {[%clk 0:00:05]} 45. g3 {[%clk 0:00:04.4]} 45... e6 {[%clk
0:00:03.5]} 46. dxe6 {[%clk 0:00:04]} 46... Kxe6 {[%clk 0:00:04.4]} 47. Ra4
{[%clk 0:00:04.7]} 47... Rb5 {[%clk 0:00:04]} 48. Ra8 {[%clk 0:00:04.7]} 48...
g4 {[%clk 0:00:03.3]} 49. fxg4 {[%clk 0:00:03.5]} 49... hxg4 {[%clk 0:00:04.2]}
50. Rf8 {[%clk 0:00:03.5]} 50... Rf5+ {[%clk 0:00:04.3]} 0-1

[Event "Early-Titled-Tuesday-Blitz-January-30-2024"]
[Site "Chess.com"]
[Date "2024.01.30"]
[Round "6"]
[White "Evgeny81"]
[Black "ChessLebaneseSalah"]
[Result "0-1"]
[WhiteElo "2706"]
[BlackElo "2462"]
[TimeControl "180+1"]
[EndTime "9:09:30 PST"]
[Termination "ChessLebaneseSalah won by resignation"]

1. e4 {[%clk 0:02:46.6]} 1... c5 {[%clk 0:02:59.2]} 2. Nf3 {[%clk 0:02:45]} 2...
d6 {[%clk 0:02:59.3]} 3. d4 {[%clk 0:02:45.4]} 3... cxd4 {[%clk 0:03:00.2]} 4.
Nxd4 {[%clk 0:02:45.7]} 4... Nf6 {[%clk 0:03:00.6]} 5. Nc3 {[%clk 0:02:46]} 5...
Nc6 {[%clk 0:03:01]} 6. Bg5 {[%clk 0:02:44.6]} 6... e6 {[%clk 0:03:01.1]} 7. Qd2
{[%clk 0:02:44.2]} 7... a6 {[%clk 0:02:58]} 8. O-O-O {[%clk 0:02:43.8]} 8... Bd7
{[%clk 0:02:58.2]} 9. f4 {[%clk 0:02:40.1]} 9... Be7 {[%clk 0:02:58.3]} 10. Kb1
{[%clk 0:02:35.6]} 10... Qc7 {[%clk 0:02:51.5]} 11. g4 {[%clk 0:02:33.6]} 11...
h5 {[%clk 0:02:42.5]} 12. gxh5 {[%clk 0:02:27.4]} 12... Nxh5 {[%clk 0:02:30]}
13. Bxe7 {[%clk 0:02:25.3]} 13... Kxe7 {[%clk 0:02:29.4]} 14. Rg1 {[%clk
0:02:16.8]} 14... Nxd4 {[%clk 0:02:22.1]} 15. Qxd4 {[%clk 0:02:14.9]} 15... Qc5
{[%clk 0:02:10.3]} 16. Qd2 {[%clk 0:02:00.2]} 16... Rad8 {[%clk 0:01:44.7]} 17.
Rg5 {[%clk 0:01:58.1]} 17... Qc7 {[%clk 0:01:34.3]} 18. Be2 {[%clk 0:01:58.2]}
18... g6 {[%clk 0:01:32.5]} 19. Bxh5 {[%clk 0:01:57.1]} 19... Rxh5 {[%clk
0:01:32.1]} 20. Rxh5 {[%clk 0:01:56]} 20... gxh5 {[%clk 0:01:33]} 21. f5 {[%clk
0:01:51.7]} 21... Rg8 {[%clk 0:01:23.8]} 22. Qh6 {[%clk 0:01:46.2]} 22... Qc5
{[%clk 0:01:06.7]} 23. f6+ {[%clk 0:01:30.5]} 23... Ke8 {[%clk 0:00:58]} 24. Nd5
{[%clk 0:01:24.8]} 24... exd5 {[%clk 0:00:46.2]} 25. Qg7 {[%clk 0:01:24.6]}
25... Rf8 {[%clk 0:00:35.3]} 26. exd5 {[%clk 0:01:23.8]} 26... Qe3 {[%clk
0:00:30.3]} 27. a3 {[%clk 0:01:13.8]} 27... Bf5 {[%clk 0:00:29]} 28. Qg2 {[%clk
0:00:53]} 28... Kd7 {[%clk 0:00:24.9]} 29. Qf1 {[%clk 0:00:52.2]} 29... Qe4
{[%clk 0:00:20.3]} 30. Rd2 {[%clk 0:00:50.7]} 30... Re8 {[%clk 0:00:19.5]} 31.
Ka2 {[%clk 0:00:49.9]} 31... Rc8 {[%clk 0:00:16]} 32. c3 {[%clk 0:00:44.1]}
32... Qc4+ {[%clk 0:00:16.1]} 33. Qxc4 {[%clk 0:00:43.7]} 33... Rxc4 {[%clk
0:00:17]} 34. Rf2 {[%clk 0:00:43.7]} 34... Bg6 {[%clk 0:00:16.5]} 35. Re2 {[%clk
0:00:41.4]} 35... Rf4 {[%clk 0:00:15.1]} 36. Re7+ {[%clk 0:00:41.2]} 36... Kc8
{[%clk 0:00:15.7]} 37. Re8+ {[%clk 0:00:41]} 37... Kc7 {[%clk 0:00:15.9]} 38.
Re7+ {[%clk 0:00:41.3]} 38... Kb6 {[%clk 0:00:16.4]} 39. b4 {[%clk 0:00:38.2]}
39... Rxf6 {[%clk 0:00:13.5]} 40. a4 {[%clk 0:00:38.6]} 40... Rf2+ {[%clk
0:00:13]} 41. Kb3 {[%clk 0:00:38.4]} 41... Bc2+ {[%clk 0:00:11.9]} 42. Ka3
{[%clk 0:00:36.2]} 42... Bd3 {[%clk 0:00:12.5]} 43. Kb3 {[%clk 0:00:28.1]} 43...
Ka7 {[%clk 0:00:11.5]} 44. Rd7 {[%clk 0:00:25.4]} 44... Bc2+ {[%clk 0:00:11]}
45. Ka3 {[%clk 0:00:24.6]} 45... Rf6 {[%clk 0:00:10.7]} 46. c4 {[%clk
0:00:22.3]} 46... Be4 {[%clk 0:00:08.2]} 47. c5 {[%clk 0:00:20.5]} 47... Bxd5
{[%clk 0:00:06.7]} 48. cxd6 {[%clk 0:00:18.3]} 48... Bc6 {[%clk 0:00:05.8]} 49.
Rd8 {[%clk 0:00:17.3]} 49... Rf3+ {[%clk 0:00:06.3]} 50. Kb2 {[%clk 0:00:16.9]}
50... Bxa4 {[%clk 0:00:06.6]} 51. Rf8 {[%clk 0:00:11.6]} 51... Rd3 {[%clk
0:00:05.9]} 52. Rd8 {[%clk 0:00:11.7]} 52... f5 {[%clk 0:00:05.3]} 53. Rf8
{[%clk 0:00:09]} 53... Rxd6 {[%clk 0:00:05]} 54. Rxf5 {[%clk 0:00:09.7]} 54...
Rd2+ {[%clk 0:00:05.2]} 55. Ka3 {[%clk 0:00:09.9]} 55... Bb5 {[%clk 0:00:05.5]}
56. Rxh5 {[%clk 0:00:10.1]} 56... Bc4 {[%clk 0:00:05.6]} 57. b5 {[%clk
0:00:09.1]} 57... a5 {[%clk 0:00:04.9]} 58. b6+ {[%clk 0:00:06.2]} 58... Ka6
{[%clk 0:00:04.9]} 0-1